[Event "Titled Tuesday Blitz July 11 Early 2023"]
[White "Ljukin, Sergei"]
[Black "Makarian, Rudik"]
[WhiteFideId "14102200"]
[BlackFideId "44105681"]
[WhiteElo "2508"]
[BlackElo "2937"]
[Result "0-1"]
[Round "3"]
[TimeControl "180+2"]
[Date "2023.07.11"]
[WhiteClock "0:00:00"]
[BlackClock "0:00:13"]
[Board "67"]

1. e4 {[%clk 0:03:00]}  c5 {[%clk 0:02:59]} 2. Nf3 {[%clk 0:03:01]}  Nc6 {[%clk 0:03:00]} 3. d4 {[%clk 0:03:01]}  cxd4 {[%clk 0:03:01]} 4. Nxd4 {[%clk 0:03:02]}  e6 {[%clk 0:03:02]} 5. Nc3 {[%clk 0:03:02]}  a6 {[%clk 0:03:02]} 6. Nxc6 {[%clk 0:03:00]}  bxc6 {[%clk 0:03:03]} 7. Bd3 {[%clk 0:03:00]}  d5 {[%clk 0:03:04]} 8. O-O {[%clk 0:02:59]}  Nf6 {[%clk 0:03:05]} 9. e5 {[%clk 0:02:59]}  Nd7 {[%clk 0:03:05]} 10. Re1 {[%clk 0:03:00]}  Be7 {[%clk 0:03:02]} 11. Qg4 {[%clk 0:03:00]}  g6 {[%clk 0:03:02]} 12. h3 {[%clk 0:02:53]}  Rb8 {[%clk 0:02:59]} 13. b3 {[%clk 0:02:52]}  O-O {[%clk 0:02:51]} 14. Na4 {[%clk 0:02:46]}  c5 {[%clk 0:02:44]} 15. c4 {[%clk 0:02:34]}  d4 {[%clk 0:02:40]} 16. Be4 {[%clk 0:02:12]}  Nxe5 {[%clk 0:02:38]} 17. Qg3 {[%clk 0:02:08]}  Bd6 {[%clk 0:02:22]} 18. Nxc5 {[%clk 0:01:28]}  Nxc4 {[%clk 0:02:13]} 19. Bf4 {[%clk 0:01:21]}  Bxf4 {[%clk 0:01:31]} 20. Qxf4 {[%clk 0:01:21]}  Qd6 {[%clk 0:01:32]} 21. Qxd6 {[%clk 0:01:15]}  Nxd6 {[%clk 0:01:32]} 22. Rad1 {[%clk 0:01:15]}  e5 {[%clk 0:01:32]} 23. f4 {[%clk 0:01:13]}  exf4 {[%clk 0:01:26]} 24. Rxd4 {[%clk 0:01:12]}  Nb5 {[%clk 0:01:23]} 25. Rb4 {[%clk 0:01:02]}  Be6 {[%clk 0:00:59]} 26. Nxa6 {[%clk 0:00:57]}  Rb6 {[%clk 0:00:47]} 27. Nc7 {[%clk 0:00:47]}  Rfb8 {[%clk 0:00:47]} 28. Na8 {[%clk 0:00:47]}  Ra6 {[%clk 0:00:37]} 29. a4 {[%clk 0:00:47]}  Rbxa8 {[%clk 0:00:24]} 30. Bxa8 {[%clk 0:00:43]}  Nc3 {[%clk 0:00:24]} 31. Bb7 {[%clk 0:00:39]}  Ra7 {[%clk 0:00:24]} 32. Kh2 {[%clk 0:00:35]}  g5 {[%clk 0:00:24]} 33. Rc1 {[%clk 0:00:34]}  Na2 {[%clk 0:00:24]} 34. Rcc4 {[%clk 0:00:21]}  Bxc4 {[%clk 0:00:22]} 35. Rxc4 {[%clk 0:00:21]}  Rxb7 {[%clk 0:00:23]} 36. a5 {[%clk 0:00:12]}  Rxb3 {[%clk 0:00:19]} 37. h4 {[%clk 0:00:00]}  Ra3 {[%clk 0:00:13]} 0-1


[Site "https://www.chess.com"]

[Event "Titled Tuesday Blitz July 11 Early 2023"]
[White "Antipov, Mikhail Al."]
[Black "Keleberda, Tymur"]
[WhiteFideId "4107012"]
[BlackFideId "14174294"]
[WhiteElo "2892"]
[BlackElo "2500"]
[Result "1-0"]
[Round "3"]
[TimeControl "180+2"]
[Date "2023.07.11"]
[WhiteClock "0:02:07"]
[BlackClock "0:00:08"]
[Board "70"]

1. e4 {[%clk 0:03:00]}  c5 {[%clk 0:02:59]} 2. Nf3 {[%clk 0:03:00]}  d6 {[%clk 0:03:00]} 3. d4 {[%clk 0:03:00]}  cxd4 {[%clk 0:03:01]} 4. Nxd4 {[%clk 0:03:00]}  Nf6 {[%clk 0:03:01]} 5. Nc3 {[%clk 0:02:59]}  a6 {[%clk 0:03:02]} 6. Rg1 {[%clk 0:02:58]}  e5 {[%clk 0:03:02]} 7. Nb3 {[%clk 0:02:58]}  Be7 {[%clk 0:03:01]} 8. g4 {[%clk 0:02:58]}  h6 {[%clk 0:03:02]} 9. h4 {[%clk 0:02:57]}  Nh7 {[%clk 0:03:02]} 10. g5 {[%clk 0:02:53]}  hxg5 {[%clk 0:03:03]} 11. hxg5 {[%clk 0:02:53]}  Bxg5 {[%clk 0:03:03]} 12. Bxg5 {[%clk 0:02:53]}  Nxg5 {[%clk 0:03:04]} 13. Be2 {[%clk 0:02:47]}  Nh3 {[%clk 0:02:59]} 14. Rh1 {[%clk 0:02:40]}  Qh4 {[%clk 0:02:40]} 15. Qxd6 {[%clk 0:02:24]}  Qxf2+ {[%clk 0:02:10]} 16. Kd1 {[%clk 0:02:24]}  Rh6 {[%clk 0:01:44]} 17. Qc7 {[%clk 0:02:22]}  Nc6 {[%clk 0:01:12]} 18. Rf1 {[%clk 0:02:21]}  Bg4 {[%clk 0:00:41]} 19. Rxf2 {[%clk 0:02:16]}  Nxf2+ {[%clk 0:00:40]} 20. Ke1 {[%clk 0:02:17]}  Rf6 {[%clk 0:00:32]} 21. Nd5 {[%clk 0:02:16]}  Rc8 {[%clk 0:00:17]} 22. Qxb7 {[%clk 0:02:12]}  Nxe4 {[%clk 0:00:12]} 23. Bxg4 {[%clk 0:02:11]}  Nd6 {[%clk 0:00:10]} 24. Nxf6+ {[%clk 0:02:07]}  gxf6 {[%clk 0:00:08]} 25. Qd7+ {[%clk 0:02:07]} 1-0


[Site "https://www.chess.com"]

[Event "Titled Tuesday Blitz July 11 Early 2023"]
[White "Kleiman, Jake"]
[Black "Donchenko, Alexander"]
[WhiteFideId "2020041"]
[BlackFideId "24603295"]
[WhiteElo "2494"]
[BlackElo "2860"]
[Result "0-1"]
[Round "3"]
[TimeControl "180+2"]
[Date "2023.07.11"]
[WhiteClock "0:00:00"]
[BlackClock "0:01:08"]
[Board "72"]

1. e4 {[%clk 0:03:00]}  c6 {[%clk 0:02:59]} 2. Nc3 {[%clk 0:02:58]}  d5 {[%clk 0:03:00]} 3. Nf3 {[%clk 0:02:58]}  g6 {[%clk 0:03:00]} 4. d4 {[%clk 0:02:55]}  Bg7 {[%clk 0:03:00]} 5. h3 {[%clk 0:02:55]}  dxe4 {[%clk 0:03:00]} 6. Nxe4 {[%clk 0:02:55]}  Nf6 {[%clk 0:03:01]} 7. Nxf6+ {[%clk 0:02:54]}  exf6 {[%clk 0:03:02]} 8. Bd3 {[%clk 0:02:47]}  O-O {[%clk 0:03:02]} 9. O-O {[%clk 0:02:47]}  Nd7 {[%clk 0:03:02]} 10. c4 {[%clk 0:02:31]}  f5 {[%clk 0:02:59]} 11. Qc2 {[%clk 0:02:27]}  Nf6 {[%clk 0:02:59]} 12. Re1 {[%clk 0:02:23]}  Re8 {[%clk 0:02:59]} 13. Bf4 {[%clk 0:02:20]}  Bd7 {[%clk 0:02:58]} 14. Be5 {[%clk 0:02:14]}  Qa5 {[%clk 0:02:56]} 15. b3 {[%clk 0:02:05]}  c5 {[%clk 0:02:48]} 16. d5 {[%clk 0:01:51]}  b5 {[%clk 0:02:44]} 17. Bc3 {[%clk 0:01:50]}  Qb6 {[%clk 0:02:42]} 18. Ne5 {[%clk 0:01:45]}  a6 {[%clk 0:02:35]} 19. Re2 {[%clk 0:01:41]}  Qd6 {[%clk 0:02:33]} 20. Rae1 {[%clk 0:01:40]}  Ne4 {[%clk 0:02:32]} 21. Bxe4 {[%clk 0:01:14]}  Bxe5 {[%clk 0:02:32]} 22. Bd3 {[%clk 0:01:10]}  Bxc3 {[%clk 0:02:29]} 23. Qxc3 {[%clk 0:01:10]}  b4 {[%clk 0:02:27]} 24. Qb2 {[%clk 0:01:10]}  a5 {[%clk 0:02:27]} 25. Re3 {[%clk 0:00:52]}  f4 {[%clk 0:02:26]} 26. Re4 {[%clk 0:00:50]}  Rxe4 {[%clk 0:02:23]} 27. Bxe4 {[%clk 0:00:46]}  Re8 {[%clk 0:02:23]} 28. Re2 {[%clk 0:00:45]}  Qe5 {[%clk 0:02:17]} 29. Qc2 {[%clk 0:00:35]}  Kg7 {[%clk 0:02:13]} 30. Bf3 {[%clk 0:00:32]}  Qa1+ {[%clk 0:02:13]} 31. Kh2 {[%clk 0:00:33]}  Bf5 {[%clk 0:02:08]} 32. Qd2 {[%clk 0:00:32]}  Rxe2 {[%clk 0:02:03]} 33. Qxe2 {[%clk 0:00:31]}  Kf6 {[%clk 0:02:03]} 34. h4 {[%clk 0:00:23]}  Qe5 {[%clk 0:02:01]} 35. Qd2 {[%clk 0:00:23]}  h6 {[%clk 0:02:01]} 36. Kg1 {[%clk 0:00:20]}  g5 {[%clk 0:02:00]} 37. hxg5+ {[%clk 0:00:21]}  hxg5 {[%clk 0:02:01]} 38. d6 {[%clk 0:00:22]}  Bd7 {[%clk 0:02:01]} 39. Bb7 {[%clk 0:00:19]}  g4 {[%clk 0:01:55]} 40. Kf1 {[%clk 0:00:18]}  Kg7 {[%clk 0:01:52]} 41. Ba8 {[%clk 0:00:15]}  g3 {[%clk 0:01:48]} 42. fxg3 {[%clk 0:00:14]}  fxg3 {[%clk 0:01:49]} 43. Bf3 {[%clk 0:00:14]}  f5 {[%clk 0:01:43]} 44. Bd1 {[%clk 0:00:13]}  f4 {[%clk 0:01:42]} 45. Bc2 {[%clk 0:00:13]}  Kf6 {[%clk 0:01:40]} 46. Qd3 {[%clk 0:00:12]}  Be8 {[%clk 0:01:21]} 47. d7 {[%clk 0:00:11]}  Qa1+ {[%clk 0:01:22]} 48. Ke2 {[%clk 0:00:10]}  Bh5+ {[%clk 0:01:21]} 49. Kd2 {[%clk 0:00:08]}  Qc3+ {[%clk 0:01:14]} 50. Qxc3+ {[%clk 0:00:07]}  bxc3+ {[%clk 0:01:15]} 51. Kxc3 {[%clk 0:00:07]}  Ke7 {[%clk 0:01:16]} 52. Be4 {[%clk 0:00:08]}  f3 {[%clk 0:01:11]} 53. Kd2 {[%clk 0:00:00]}  f2 {[%clk 0:01:08]} 0-1


[Site "https://www.chess.com"]

[Event "Titled Tuesday Blitz July 11 Early 2023"]
[White "Henriquez Villagra, Cristobal"]
[Black "Postlmayer, Jakob"]
[WhiteFideId "3409350"]
[BlackFideId "1643622"]
[WhiteElo "2854"]
[BlackElo "2492"]
[Result "1-0"]
[Round "3"]
[TimeControl "180+2"]
[Date "2023.07.11"]
[WhiteClock "0:00:09"]
[BlackClock "0:00:02"]
[Board "73"]

1. e4 {[%clk 0:03:00]}  c5 {[%clk 0:02:59]} 2. Nc3 {[%clk 0:03:00]}  d6 {[%clk 0:02:58]} 3. h3 {[%clk 0:03:00]}  g6 {[%clk 0:02:57]} 4. g4 {[%clk 0:03:01]}  Bg7 {[%clk 0:02:56]} 5. Bg2 {[%clk 0:03:01]}  Nc6 {[%clk 0:02:56]} 6. d3 {[%clk 0:03:01]}  e5 {[%clk 0:02:52]} 7. f4 {[%clk 0:03:02]}  Qh4+ {[%clk 0:02:49]} 8. Kf1 {[%clk 0:03:00]}  Nd4 {[%clk 0:02:46]} 9. Nce2 {[%clk 0:02:55]}  Nxe2 {[%clk 0:02:41]} 10. Qxe2 {[%clk 0:02:51]}  Qe7 {[%clk 0:02:41]} 11. f5 {[%clk 0:02:49]}  h5 {[%clk 0:02:38]} 12. Nf3 {[%clk 0:02:44]}  hxg4 {[%clk 0:02:37]} 13. hxg4 {[%clk 0:02:44]}  Rxh1+ {[%clk 0:02:37]} 14. Bxh1 {[%clk 0:02:45]}  Bd7 {[%clk 0:02:24]} 15. Qh2 {[%clk 0:02:27]}  O-O-O {[%clk 0:02:15]} 16. c4 {[%clk 0:02:14]}  Nf6 {[%clk 0:02:03]} 17. Qg2 {[%clk 0:01:48]}  gxf5 {[%clk 0:01:57]} 18. gxf5 {[%clk 0:01:34]}  Rg8 {[%clk 0:01:56]} 19. Bg5 {[%clk 0:01:34]}  Qf8 {[%clk 0:01:50]} 20. Qd2 {[%clk 0:00:53]}  Rh8 {[%clk 0:01:42]} 21. Ke2 {[%clk 0:00:50]}  Ng4 {[%clk 0:01:26]} 22. Rg1 {[%clk 0:00:50]}  f6 {[%clk 0:01:26]} 23. Bh4 {[%clk 0:00:38]}  Bh6 {[%clk 0:01:17]} 24. Qe1 {[%clk 0:00:38]}  Rg8 {[%clk 0:01:15]} 25. Qg3 {[%clk 0:00:34]}  Be3 {[%clk 0:00:55]} 26. Rg2 {[%clk 0:00:32]}  Qh6 {[%clk 0:00:42]} 27. Qh3 {[%clk 0:00:28]}  Qh5 {[%clk 0:00:08]} 28. Rxg4 {[%clk 0:00:26]}  Rxg4 {[%clk 0:00:07]} 29. Kxe3 {[%clk 0:00:26]}  Qh6+ {[%clk 0:00:07]} 30. Ke2 {[%clk 0:00:23]}  Rg8 {[%clk 0:00:07]} 31. Qf1 {[%clk 0:00:20]}  Be8 {[%clk 0:00:07]} 32. Bf2 {[%clk 0:00:19]}  Bh5 {[%clk 0:00:07]} 33. Bg2 {[%clk 0:00:14]}  Qf4 {[%clk 0:00:05]} 34. Qh1 {[%clk 0:00:13]}  Bg4 {[%clk 0:00:04]} 35. Qh7 {[%clk 0:00:05]}  Rd8 {[%clk 0:00:02]} 36. Qh1 {[%clk 0:00:03]}  a6 {[%clk 0:00:01]} 37. Be3 {[%clk 0:00:04]}  Qg3 {[%clk 0:00:01]} 38. Bf1 {[%clk 0:00:04]}  Bh3 {[%clk 0:00:01]} 39. Qxh3 {[%clk 0:00:04]}  Qg7 {[%clk 0:00:01]} 40. Qg2 {[%clk 0:00:04]}  Qe7 {[%clk 0:00:02]} 41. Qg6 {[%clk 0:00:04]}  Qc7 {[%clk 0:00:02]} 42. Nh2 {[%clk 0:00:05]}  Qe7 {[%clk 0:00:03]} 43. Ng4 {[%clk 0:00:05]}  Rf8 {[%clk 0:00:03]} 44. Bh6 {[%clk 0:00:06]}  Rf7 {[%clk 0:00:04]} 45. Bg2 {[%clk 0:00:06]}  Kc7 {[%clk 0:00:04]} 46. Bf3 {[%clk 0:00:07]}  b5 {[%clk 0:00:04]} 47. Ne3 {[%clk 0:00:08]}  bxc4 {[%clk 0:00:02]} 48. Nd5+ {[%clk 0:00:09]} 1-0


[Site "https://www.chess.com"]

[Event "Titled Tuesday Blitz July 11 Early 2023"]
[White "Llorente Zaro, Alfonso"]
[Black "marik_spb"]
[WhiteFideId "2254131"]
[WhiteElo "2808"]
[BlackElo "2492"]
[Result "1/2-1/2"]
[Round "3"]
[TimeControl "180+2"]
[Date "2023.07.11"]
[WhiteClock "0:00:51"]
[BlackClock "0:00:10"]
[Board "75"]

1. e4 {[%clk 0:03:00]}  c6 {[%clk 0:02:59]} 2. Nc3 {[%clk 0:03:00]}  d5 {[%clk 0:02:59]} 3. Qf3 {[%clk 0:03:00]}  dxe4 {[%clk 0:02:53]} 4. Nxe4 {[%clk 0:02:59]}  Nf6 {[%clk 0:02:53]} 5. Nxf6+ {[%clk 0:02:59]}  exf6 {[%clk 0:02:53]} 6. Bc4 {[%clk 0:02:59]}  Bd6 {[%clk 0:02:50]} 7. Ne2 {[%clk 0:02:59]}  Nd7 {[%clk 0:02:44]} 8. d4 {[%clk 0:02:57]}  Qc7 {[%clk 0:02:22]} 9. Bf4 {[%clk 0:02:53]}  Nb6 {[%clk 0:02:16]} 10. Bb3 {[%clk 0:02:43]}  Be6 {[%clk 0:02:03]} 11. Bxd6 {[%clk 0:02:39]}  Qxd6 {[%clk 0:02:04]} 12. Qg3 {[%clk 0:02:39]}  O-O-O {[%clk 0:01:41]} 13. Qxd6 {[%clk 0:02:38]}  Rxd6 {[%clk 0:01:38]} 14. O-O-O {[%clk 0:02:39]}  Re8 {[%clk 0:01:30]} 15. Rhe1 {[%clk 0:02:21]}  Bxb3 {[%clk 0:01:27]} 16. axb3 {[%clk 0:02:21]}  Rde6 {[%clk 0:01:28]} 17. Kd2 {[%clk 0:02:22]}  Nd5 {[%clk 0:01:24]} 18. c4 {[%clk 0:02:21]}  Nb4 {[%clk 0:01:15]} 19. Ra1 {[%clk 0:01:44]}  Nc2 {[%clk 0:01:04]} 20. Kxc2 {[%clk 0:01:23]}  Rxe2+ {[%clk 0:01:03]} 21. Rxe2 {[%clk 0:01:24]}  Rxe2+ {[%clk 0:01:03]} 22. Kc3 {[%clk 0:01:25]}  Rxf2 {[%clk 0:01:01]} 23. Rxa7 {[%clk 0:01:25]}  Kb8 {[%clk 0:00:50]} 24. Ra1 {[%clk 0:01:25]}  Rxg2 {[%clk 0:00:49]} 25. Re1 {[%clk 0:01:26]}  Rxh2 {[%clk 0:00:46]} 26. Re7 {[%clk 0:01:25]}  h5 {[%clk 0:00:45]} 27. Rxf7 {[%clk 0:01:25]}  Rg2 {[%clk 0:00:46]} 28. Kb4 {[%clk 0:01:23]}  h4 {[%clk 0:00:43]} 29. Kc5 {[%clk 0:01:22]}  Ka7 {[%clk 0:00:43]} 30. Rf8 {[%clk 0:01:16]}  h3 {[%clk 0:00:43]} 31. Rh8 {[%clk 0:01:16]}  h2 {[%clk 0:00:43]} 32. b4 {[%clk 0:01:17]}  Rxb2 {[%clk 0:00:42]} 33. d5 {[%clk 0:01:12]}  cxd5 {[%clk 0:00:43]} 34. cxd5 {[%clk 0:01:12]}  g5 {[%clk 0:00:42]} 35. b5 {[%clk 0:01:11]}  Rc2+ {[%clk 0:00:38]} 36. Kb4 {[%clk 0:01:10]}  g4 {[%clk 0:00:38]} 37. d6 {[%clk 0:01:10]}  g3 {[%clk 0:00:38]} 38. d7 {[%clk 0:01:09]}  Rd2 {[%clk 0:00:36]} 39. Kc5 {[%clk 0:01:06]}  b6+ {[%clk 0:00:24]} 40. Kc6 {[%clk 0:01:05]}  Rc2+ {[%clk 0:00:08]} 41. Kd6 {[%clk 0:01:04]}  Rd2+ {[%clk 0:00:09]} 42. Kc6 {[%clk 0:00:57]}  Rc2+ {[%clk 0:00:09]} 43. Kd6 {[%clk 0:00:56]}  Rd2+ {[%clk 0:00:10]} 44. Kc6 {[%clk 0:00:51]} 1/2-1/2


[Site "https://www.chess.com"]

[Event "Titled Tuesday Blitz July 11 Early 2023"]
[White "Kushko, Dmitriy"]
[Black "Shishkov, Andrei"]
[WhiteFideId "14162261"]
[BlackFideId "4500563"]
[WhiteElo "2774"]
[BlackElo "2486"]
[Result "1-0"]
[Round "3"]
[TimeControl "180+2"]
[Date "2023.07.11"]
[WhiteClock "0:00:45"]
[BlackClock "0:00:01"]
[Board "78"]

1. Nf3 {[%clk 0:03:00]}  Nf6 {[%clk 0:02:59]} 2. g3 {[%clk 0:03:00]}  b5 {[%clk 0:02:58]} 3. Na3 {[%clk 0:03:00]}  b4 {[%clk 0:02:57]} 4. Nc4 {[%clk 0:03:00]}  a5 {[%clk 0:02:57]} 5. a3 {[%clk 0:02:57]}  Bb7 {[%clk 0:02:56]} 6. Bg2 {[%clk 0:02:56]}  e6 {[%clk 0:02:53]} 7. O-O {[%clk 0:02:56]}  Be7 {[%clk 0:02:52]} 8. d3 {[%clk 0:02:49]}  O-O {[%clk 0:02:51]} 9. axb4 {[%clk 0:02:42]}  axb4 {[%clk 0:02:51]} 10. Rxa8 {[%clk 0:02:43]}  Bxa8 {[%clk 0:02:52]} 11. Re1 {[%clk 0:02:30]}  d5 {[%clk 0:02:50]} 12. Nce5 {[%clk 0:02:30]}  c5 {[%clk 0:02:49]} 13. c4 {[%clk 0:02:27]}  d4 {[%clk 0:02:42]} 14. Qa4 {[%clk 0:02:25]}  Bb7 {[%clk 0:02:11]} 15. Bf4 {[%clk 0:02:24]}  h6 {[%clk 0:02:06]} 16. Ra1 {[%clk 0:02:20]}  Nfd7 {[%clk 0:01:52]} 17. Qa7 {[%clk 0:02:15]}  Bxf3 {[%clk 0:01:34]} 18. Bxf3 {[%clk 0:02:08]}  Nxe5 {[%clk 0:01:34]} 19. Bxe5 {[%clk 0:02:08]}  Bd6 {[%clk 0:01:25]} 20. Bxd6 {[%clk 0:02:07]}  Qxd6 {[%clk 0:01:26]} 21. Qb7 {[%clk 0:01:58]}  Rd8 {[%clk 0:00:46]} 22. Ra8 {[%clk 0:01:39]}  Kf8 {[%clk 0:00:34]} 23. h4 {[%clk 0:01:37]}  g5 {[%clk 0:00:33]} 24. hxg5 {[%clk 0:01:32]}  hxg5 {[%clk 0:00:34]} 25. Kf1 {[%clk 0:01:17]}  Kg7 {[%clk 0:00:13]} 26. Ke1 {[%clk 0:01:17]}  Kg6 {[%clk 0:00:13]} 27. Kd2 {[%clk 0:01:14]}  f5 {[%clk 0:00:13]} 28. Kc2 {[%clk 0:01:13]}  g4 {[%clk 0:00:13]} 29. Bg2 {[%clk 0:01:13]}  Qe5 {[%clk 0:00:13]} 30. Kd1 {[%clk 0:00:56]}  Rh8 {[%clk 0:00:12]} 31. Ra7 {[%clk 0:00:54]}  Qf6 {[%clk 0:00:11]} 32. Qc7 {[%clk 0:00:48]}  Rh2 {[%clk 0:00:10]} 33. Qxb8 {[%clk 0:00:44]}  Rxg2 {[%clk 0:00:01]} 34. Qg8+ {[%clk 0:00:45]} 1-0


[Site "https://www.chess.com"]

[Event "Titled Tuesday Blitz July 11 Early 2023"]
[White "lagarto93"]
[Black "Goltsev, Dmitry"]
[BlackFideId "24176710"]
[WhiteElo "2486"]
[BlackElo "2766"]
[Result "0-1"]
[Round "3"]
[TimeControl "180+2"]
[Date "2023.07.11"]
[WhiteClock "0:00:07"]
[BlackClock "0:00:07"]
[Board "79"]

1. d4 {[%clk 0:03:00]}  Nf6 {[%clk 0:03:00]} 2. c4 {[%clk 0:03:01]}  e6 {[%clk 0:02:59]} 3. Nc3 {[%clk 0:03:01]}  Bb4 {[%clk 0:02:58]} 4. f3 {[%clk 0:03:01]}  b6 {[%clk 0:02:57]} 5. e4 {[%clk 0:03:00]}  Bb7 {[%clk 0:02:56]} 6. Bd3 {[%clk 0:03:00]}  Bxc3+ {[%clk 0:02:55]} 7. bxc3 {[%clk 0:02:59]}  d6 {[%clk 0:02:56]} 8. Ne2 {[%clk 0:02:59]}  e5 {[%clk 0:02:57]} 9. O-O {[%clk 0:02:59]}  O-O {[%clk 0:02:56]} 10. Ng3 {[%clk 0:02:59]}  a5 {[%clk 0:02:52]} 11. Nf5 {[%clk 0:02:48]}  Bc8 {[%clk 0:02:42]} 12. g4 {[%clk 0:02:47]}  Bxf5 {[%clk 0:02:39]} 13. gxf5 {[%clk 0:02:46]}  Nc6 {[%clk 0:02:36]} 14. d5 {[%clk 0:02:46]}  Ne7 {[%clk 0:02:33]} 15. Kh1 {[%clk 0:02:46]}  Nd7 {[%clk 0:02:31]} 16. Rg1 {[%clk 0:02:46]}  f6 {[%clk 0:02:32]} 17. Bh6 {[%clk 0:02:38]}  Rf7 {[%clk 0:02:31]} 18. Qe2 {[%clk 0:02:36]}  Kh8 {[%clk 0:02:26]} 19. Be3 {[%clk 0:02:36]}  Nc5 {[%clk 0:02:22]} 20. Bc2 {[%clk 0:02:35]}  Qd7 {[%clk 0:02:17]} 21. Rg3 {[%clk 0:02:35]}  Rg8 {[%clk 0:02:18]} 22. Rag1 {[%clk 0:02:35]}  g5 {[%clk 0:02:13]} 23. Rh3 {[%clk 0:01:49]}  Kg7 {[%clk 0:02:07]} 24. Rh5 {[%clk 0:01:42]}  Kf8 {[%clk 0:02:06]} 25. Qg2 {[%clk 0:01:40]}  Ke8 {[%clk 0:02:03]} 26. Qh3 {[%clk 0:01:40]}  Rh8 {[%clk 0:02:03]} 27. Qg4 {[%clk 0:01:25]}  h6 {[%clk 0:01:58]} 28. h4 {[%clk 0:01:24]}  Rfh7 {[%clk 0:01:54]} 29. Rg2 {[%clk 0:01:16]}  Kd8 {[%clk 0:01:50]} 30. Rh2 {[%clk 0:01:13]}  Ng8 {[%clk 0:01:47]} 31. hxg5 {[%clk 0:01:11]}  hxg5 {[%clk 0:01:40]} 32. Bxg5 {[%clk 0:00:45]}  Rxh5 {[%clk 0:00:36]} 33. Rxh5 {[%clk 0:00:46]}  Rxh5+ {[%clk 0:00:36]} 34. Qxh5 {[%clk 0:00:46]}  fxg5 {[%clk 0:00:36]} 35. Qxg5+ {[%clk 0:00:36]}  Ne7 {[%clk 0:00:36]} 36. f6 {[%clk 0:00:37]}  Qe8 {[%clk 0:00:32]} 37. fxe7+ {[%clk 0:00:23]}  Qxe7 {[%clk 0:00:33]} 38. Qg8+ {[%clk 0:00:17]}  Kd7 {[%clk 0:00:24]} 39. Qg4+ {[%clk 0:00:17]}  Kd8 {[%clk 0:00:22]} 40. Qg8+ {[%clk 0:00:16]}  Qe8 {[%clk 0:00:22]} 41. Qxe8+ {[%clk 0:00:16]}  Kxe8 {[%clk 0:00:23]} 42. Kg2 {[%clk 0:00:16]}  Ke7 {[%clk 0:00:21]} 43. Kg3 {[%clk 0:00:17]}  Kf6 {[%clk 0:00:22]} 44. f4 {[%clk 0:00:17]}  exf4+ {[%clk 0:00:22]} 45. Kxf4 {[%clk 0:00:18]}  Nd7 {[%clk 0:00:22]} 46. Bd1 {[%clk 0:00:18]}  Ne5 {[%clk 0:00:22]} 47. Be2 {[%clk 0:00:18]}  Ng6+ {[%clk 0:00:22]} 48. Ke3 {[%clk 0:00:18]}  Kg5 {[%clk 0:00:18]} 49. Bf1 {[%clk 0:00:15]}  Ne5 {[%clk 0:00:16]} 50. Be2 {[%clk 0:00:16]}  Nd7 {[%clk 0:00:15]} 51. Bf1 {[%clk 0:00:16]}  Kg4 {[%clk 0:00:15]} 52. Be2+ {[%clk 0:00:16]}  Kg3 {[%clk 0:00:15]} 53. Bf1 {[%clk 0:00:17]}  Ne5 {[%clk 0:00:15]} 54. Be2 {[%clk 0:00:17]}  Kg2 {[%clk 0:00:15]} 55. a3 {[%clk 0:00:13]}  Kg1 {[%clk 0:00:10]} 56. a4 {[%clk 0:00:13]}  Kg2 {[%clk 0:00:10]} 57. Bd3 {[%clk 0:00:13]}  Kg3 {[%clk 0:00:07]} 58. Be2 {[%clk 0:00:13]}  Kg2 {[%clk 0:00:07]} 59. Bd3 {[%clk 0:00:13]}  Ng4+ {[%clk 0:00:07]} 60. Kd4 {[%clk 0:00:13]}  Kf2 {[%clk 0:00:07]} 61. Bc2 {[%clk 0:00:12]}  Ne5 {[%clk 0:00:07]} 62. Bd1 {[%clk 0:00:11]}  Ke1 {[%clk 0:00:07]} 63. Bh5 {[%clk 0:00:12]}  Kd2 {[%clk 0:00:08]} 64. c5 {[%clk 0:00:07]}  bxc5# {[%clk 0:00:07]} 0-1


[Site "https://www.chess.com"]

[Event "Titled Tuesday Blitz July 11 Early 2023"]
[White "Bettalli, Francesco"]
[Black "Schmakel, Sam"]
[WhiteFideId "2816453"]
[BlackFideId "2039311"]
[WhiteElo "2485"]
[BlackElo "2759"]
[Result "0-1"]
[Round "3"]
[TimeControl "180+2"]
[Date "2023.07.11"]
[WhiteClock "0:02:16"]
[BlackClock "0:01:16"]
[Board "80"]

1. d4 {[%clk 0:03:00]}  d5 {[%clk 0:02:56]} 2. Nc3 {[%clk 0:03:01]}  c6 {[%clk 0:02:47]} 3. Bf4 {[%clk 0:02:59]}  g6 {[%clk 0:02:40]} 4. h4 {[%clk 0:02:57]}  Nf6 {[%clk 0:02:32]} 5. e3 {[%clk 0:02:56]}  h5 {[%clk 0:02:31]} 6. f3 {[%clk 0:02:52]}  Bg7 {[%clk 0:02:29]} 7. Bd3 {[%clk 0:02:53]}  Nbd7 {[%clk 0:02:23]} 8. Qe2 {[%clk 0:02:53]}  O-O {[%clk 0:02:22]} 9. Nh3 {[%clk 0:02:53]}  b5 {[%clk 0:02:21]} 10. a3 {[%clk 0:02:52]}  a5 {[%clk 0:02:21]} 11. Ng5 {[%clk 0:02:52]}  Bb7 {[%clk 0:02:13]} 12. Kf2 {[%clk 0:02:50]}  Re8 {[%clk 0:02:07]} 13. e4 {[%clk 0:02:45]}  e5 {[%clk 0:02:04]} 14. dxe5 {[%clk 0:02:45]}  Nxe5 {[%clk 0:02:04]} 15. Bxe5 {[%clk 0:02:39]}  Rxe5 {[%clk 0:02:05]} 16. f4 {[%clk 0:02:39]}  Ng4+ {[%clk 0:01:48]} 17. Kg3 {[%clk 0:02:37]}  Re8 {[%clk 0:01:48]} 18. e5 {[%clk 0:02:38]}  Nxe5 {[%clk 0:01:44]} 19. f5 {[%clk 0:02:38]}  Qd6 {[%clk 0:01:35]} 20. Kh3 {[%clk 0:02:36]}  Nxd3 {[%clk 0:01:26]} 21. Qxd3 {[%clk 0:02:37]}  Qf4 {[%clk 0:01:21]} 22. g3 {[%clk 0:02:25]}  Re3 {[%clk 0:01:17]} 23. Ne2 {[%clk 0:02:16]}  Qg4+ {[%clk 0:01:16]} 0-1


[Site "https://www.chess.com"]